fUSD/lending_fUSD_20241215
["ID","MTS","AMOUNT","RATE_DAILY","PERIOD"]
[345396424,1734233447731,-655.262782,0.00013979,2]
[345396425,1734233447740,-655.262782,0.00013979,2]
[345396426,1734233447749,-655.262782,0.00013979,2]
[345396427,1734233447759,-655.262782,0.00013979,2]
[345396428,1734233447768,-655.262782,0.00013979,2]
[345396429,1734233447778,-655.262782,0.00013979,2]
[345396430,1734233447788,-631.14284126,0.00013979,2]
[345396431,1734233447798,-717.0,0.0001398,2]
[345396432,1734233447808,-310139.4224886,0.0001398,5]
[345396433,1734233447817,-151.0,0.0001398,2]
[345396434,1734233447827,-151.0,0.0001398,2]
[345396435,1734233447837,-256.736077,0.0001398,2]
[345396436,1734233447846,-152.339035,0.0001398,2]
[345396437,1734233447855,-550.653301,0.0001398,2]
[345396438,1734233447865,-550.653301,0.0001398,2]
[345396439,1734233447875,-550.653301,0.0001398,2]
[345396440,1734233447885,-550.653301,0.0001398,2]
[345396441,1734233447894,-151.0,0.0001398,2]
[345396442,1734233447903,-151.0,0.0001398,2]
[345396443,1734233447914,-1360.889855,0.0001398,2]
[345396444,1734233447924,-1360.889855,0.0001398,2]
[345396445,1734233447933,-188.069419,0.0001398,2]
[345396446,1734233447943,-188.069419,0.0001398,2]
[345396447,1734233447953,-151.0,0.0001398,2]
[345396448,1734233447966,-289.854541,0.0001398,2]
[345396449,1734233447975,-151.0,0.0001398,2]
[345396450,1734233447985,-151.0,0.0001398,2]
[345396451,1734233447995,-151.0,0.0001398,2]
[345396452,1734233448005,-151.0,0.0001398,2]
[345396453,1734233448015,-151.0,0.0001398,2]
[345396454,1734233448026,-300.44904,0.0001398,2]
[345396455,1734233448036,-151.0,0.0001398,2]
[345396456,1734233448046,-306.261387,0.0001398,2]
[345396457,1734233448056,-151.0,0.0001398,2]
[345396458,1734233448067,-306.261387,0.0001398,2]
[345396459,1734233448081,-151.0,0.0001398,2]
[345396460,1734233448091,-165.076312,0.0001398,2]
[345396461,1734233448102,-857.965,0.0001398,2]
[345396462,1734233448111,-165.076312,0.0001398,2]
[345396463,1734233448123,-182.095184,0.0001398,2]
[345396464,1734233448132,-857.965,0.0001398,2]
[345396465,1734233448143,-182.095184,0.0001398,2]
[345396466,1734233448154,-188.951613,0.0001398,2]
[345396467,1734233448163,-160.476214,0.0001398,2]
[345396468,1734233448172,-160.476214,0.0001398,2]
[345396469,1734233448183,-207.999852,0.0001398,2]
[345396470,1734233448193,-207.999852,0.0001398,2]
[345396471,1734233448202,-151.0,0.0001398,2]
[345396472,1734233448215,-654.387944,0.0001398,2]
[345396473,1734233448226,-654.387944,0.0001398,2]
[345396474,1734233448236,-320.879224,0.0001398,2]
[345396475,1734233448247,-320.879224,0.0001398,2]
[345396476,1734233448258,-151.0,0.0001398,2]
[345396477,1734233448268,-151.0,0.0001398,2]
[345396478,1734233448278,-655.262782,0.0001398,2]
[345396479,1734233448288,-655.262782,0.0001398,2]
[345396480,1734233448298,-200.0,0.00013981,2]
[345396481,1734233448307,-3310.57457609,0.00013983,2]
[345396482,1734233448319,-203003.53887218,0.00013983,2]
[345396483,1734233448329,-49778.33185523,0.00013983,2]
[345396484,1734233448338,-7773.9394296,0.00013983,2]
[345396485,1734233448348,-203003.53887218,0.00013983,2]
[345396486,1734233448359,-551.76242935,0.00013983,2]
[345396487,1734233448368,-201.18721383,0.00013984,2]
[345396488,1734233448377,-200.0,0.00013984,2]
[345396489,1734233448388,-4806.53227466,0.00013985,2]
[345396490,1734233448397,-4806.53227466,0.00013985,2]
[345396491,1734233448407,-5470.93801568,0.00013985,2]
[345396492,1734233448416,-593.79663589,0.00013986,2]
[345396493,1734233448425,-200.0,0.00013986,2]
[345396494,1734233448436,-1056.16,0.00013987,2]
[345396495,1734233448446,-500.0,0.00013987,2]
[345396496,1734233448457,-500.0,0.00013987,2]
[345396497,1734233448468,-1394.99,0.00013987,2]
[345396498,1734233448478,-10011.11,0.00013987,2]
[345396499,1734233448489,-6841.52,0.00013987,2]
[345396500,1734233448622,-1283.95,0.00013987,2]
[345396501,1734233448634,-10544.58,0.00013987,2]
[345396502,1734233448644,-500.0,0.00013987,2]
[345396503,1734233448654,-18549.34,0.00013987,2]
[345396504,1734233448664,-662.78,0.00013987,2]
[345396505,1734233448676,-2543.79,0.00013987,2]
[345396506,1734233448686,-500.0,0.00013987,2]
[345396507,1734233448696,-579.0529933,0.00013987,2]
[345396508,1734233448706,-580.94,0.00013987,2]
[345396509,1734233448718,-8942.94,0.00013987,2]
[345396510,1734233448728,-200.0,0.00013987,2]
[345396511,1734233448738,-49778.33185523,0.00013987,2]
[345396512,1734233448748,-3310.57457609,0.00013988,2]
[345396513,1734233448757,-4113.7,0.00013988,2]
[345396514,1734233448767,-4113.7,0.00013988,2]
[345396515,1734233448777,-4113.7,0.00013988,2]
[345396516,1734233448787,-500.0,0.00013988,2]
[345396517,1734233448798,-500.0,0.00013988,2]
[345396518,1734233448808,-500.0,0.00013988,2]
[345396519,1734233448817,-500.0,0.00013988,2]
[345396520,1734233448828,-500.0,0.00013988,2]
[345396521,1734233448837,-500.0,0.00013988,2]
[345396522,1734233448847,-500.0,0.00013988,2]
[345396523,1734233448857,-500.0,0.00013988,2]
[345396524,1734233448867,-500.0,0.00013988,2]
[345396525,1734233448877,-500.0,0.00013988,2]
[345396526,1734233448886,-500.0,0.00013988,2]
[345396527,1734233448896,-614.03490807,0.00013988,2]
[345396528,1734233448906,-500.0,0.00013988,2]
[345396529,1734233448916,-500.0,0.00013988,2]
[345396530,1734233448926,-500.0,0.00013988,2]
[345396531,1734233448936,-500.0,0.00013988,2]
[345396532,1734233448947,-500.0,0.00013988,2]
[345396533,1734233448957,-500.0,0.00013988,2]
[345396534,1734233448969,-260.66100512,0.00013988,2]
[345396535,1734233448979,-500.0,0.00013988,2]
[345396536,1734233448989,-500.0,0.00013988,2]
[345396537,1734233448998,-500.0,0.00013988,2]
[345396538,1734233449008,-500.0,0.00013988,2]
[345396539,1734233449018,-500.0,0.00013988,2]
[345396540,1734233449028,-500.0,0.00013988,2]
[345396541,1734233449039,-640.82771845,0.00013988,2]
[345396542,1734233449048,-500.0,0.00013988,2]
[345396543,1734233449058,-500.0,0.00013988,2]
[345396544,1734233449069,-500.0,0.00013988,2]
[345396545,1734233449081,-500.0,0.00013988,2]
[345396546,1734233449092,-500.0,0.00013988,2]
[345396547,1734233449102,-500.0,0.00013988,2]
[345396548,1734233449113,-550.653301,0.00013988,2]
[345396549,1734233449123,-550.653301,0.00013988,2]
[345396550,1734233449133,-500.0,0.00013988,2]
[345396551,1734233449145,-500.0,0.00013988,2]
[345396552,1734233449155,-500.0,0.00013988,2]
[345396553,1734233449165,-500.0,0.00013988,2]
[345396554,1734233449175,-500.0,0.00013988,2]
[345396555,1734233449185,-500.0,0.00013988,2]
[345396556,1734233449194,-3339.33,0.00013988,2]
[345396557,1734233449204,-3339.33,0.00013988,2]
[345396558,1734233449216,-486.3201237,0.00013988,2]
[345396559,1734233449230,-500.0,0.00013988,2]
[345396560,1734233449239,-500.0,0.00013988,2]
[345396561,1734233449250,-500.0,0.00013988,2]
[345396562,1734233449259,-151.0,0.00013988,2]
[345396563,1734233449269,-1360.889855,0.00013988,2]
[345396564,1734233449278,-151.0,0.00013988,2]
[345396565,1734233449288,-500.0,0.00013988,2]
[345396566,1734233449298,-500.0,0.00013988,2]
[345396567,1734233449309,-1360.889855,0.00013988,2]
[345396568,1734233449319,-188.069419,0.00013988,2]
[345396569,1734233449329,-188.069419,0.00013988,2]
[345396570,1734233449340,-500.0,0.00013988,2]
[345396571,1734233449350,-500.0,0.00013988,2]
[345396572,1734233449360,-151.0,0.00013988,2]
[345396573,1734233449370,-500.0,0.00013988,2]
[345396574,1734233449380,-500.0,0.00013988,2]
[345396575,1734233449390,-500.0,0.00013988,2]
[345396576,1734233449400,-500.0,0.00013988,2]
[345396577,1734233449409,-151.0,0.00013988,2]
[345396578,1734233449419,-151.0,0.00013988,2]
[345396579,1734233449429,-500.0,0.00013988,2]
[345396580,1734233449439,-500.0,0.00013988,2]
[345396581,1734233449449,-500.0,0.00013988,2]
[345396582,1734233449459,-151.0,0.00013988,2]
[345396583,1734233449471,-151.0,0.00013988,2]
[345396584,1734233449481,-151.0,0.00013988,2]
[345396585,1734233449491,-223.595962,0.00013988,2]
[345396586,1734233449502,-151.0,0.00013988,2]
[345396587,1734233449512,-151.0,0.00013988,2]
[345396588,1734233449521,-151.0,0.00013988,2]
[345396589,1734233449532,-151.0,0.00013988,2]
[345396590,1734233449542,-151.0,0.00013988,2]
[345396591,1734233449552,-150.691116,0.00013988,2]
[345396592,1734233449562,-500.0,0.00013988,2]
[345396593,1734233449574,-500.0,0.00013988,2]
[345396594,1734233449583,-512.97784298,0.00013988,2]
[345396595,1734233449593,-306.261387,0.00013988,2]
[345396596,1734233449603,-151.0,0.00013988,2]
[345396597,1734233449613,-306.261387,0.00013988,2]
[345396598,1734233449622,-151.0,0.00013988,2]
[345396599,1734233449632,-500.0,0.00013988,2]
[345396600,1734233449641,-165.076312,0.00013988,2]
[345396601,1734233449651,-165.076312,0.00013988,2]
[345396602,1734233449661,-857.965,0.00013988,2]
[345396603,1734233449672,-165.076312,0.00013988,2]
[345396604,1734233449682,-165.076312,0.00013988,2]
[345396605,1734233449692,-182.095184,0.00013988,2]
[345396606,1734233449702,-857.965,0.00013988,2]
[345396607,1734233449711,-182.095184,0.00013988,2]
[345396608,1734233449723,-578.94,0.00013988,2]
[345396609,1734233449732,-578.94,0.00013988,2]
[345396610,1734233449741,-500.0,0.00013988,2]
[345396611,1734233449752,-500.0,0.00013988,2]
[345396612,1734233449762,-911.18,0.00013988,2]
[345396613,1734233449771,-6755.58,0.00013988,2]
[345396614,1734233449781,-6755.58,0.00013988,2]
[345396615,1734233449791,-500.0,0.00013988,2]
[345396616,1734233449802,-500.0,0.00013988,2]
[345396617,1734233449811,-529.45431685,0.00013988,2]
[345396618,1734233449822,-525.02,0.00013988,2]
[345396619,1734233449831,-525.02,0.00013988,2]
[345396620,1734233449841,-500.0,0.00013988,2]
[345396621,1734233449851,-323.54923353,0.00013988,2]
[345396622,1734233449861,-1056.16,0.00013988,2]
[345396623,1734233449871,-500.0,0.00013988,2]
[345396624,1734233449881,-160.476214,0.00013988,2]
[345396625,1734233449891,-160.476214,0.00013988,2]
[345396626,1734233449902,-1000.0,0.00013988,2]
[345396627,1734233449911,-1000.0,0.00013988,2]
[345396628,1734233449923,-160.476214,0.00013988,2]
[345396629,1734233449933,-160.476221,0.00013988,2]
[345396630,1734233449943,-500.0,0.00013988,2]
[345396631,1734233449953,-500.0,0.00013988,2]
[345396632,1734233449964,-2563.75,0.00013988,2]
[345396633,1734233449974,-2563.75,0.00013988,2]
[345396634,1734233449984,-500.0,0.00013988,2]
[345396635,1734233449994,-500.0,0.00013988,2]
[345396636,1734233450004,-583.23032119,0.00013988,2]
[345396637,1734233450013,-207.999852,0.00013988,2]
[345396638,1734233450023,-207.999852,0.00013988,2]
[345396639,1734233450032,-500.0,0.00013988,2]
[345396640,1734233450043,-207.999852,0.00013988,2]
[345396641,1734233450053,-207.999857,0.00013988,2]
[345396642,1734233450063,-3656.05,0.00013988,2]
[345396643,1734233450075,-516.21988125,0.00013988,2]
[345396644,1734233450086,-500.0,0.00013988,2]
[345396645,1734233450096,-172.63336475,0.00013988,2]
[345396646,1734233450107,-151.0,0.00013988,2]
[345396647,1734233450120,-151.0,0.00013988,2]
[345396648,1734233450129,-500.0,0.00013988,2]
[345396649,1734233450140,-500.0,0.00013988,2]
[345396650,1734233450152,-500.0,0.00013988,2]
[345396651,1734233450162,-500.0,0.00013988,2]
[345396652,1734233450172,-500.0,0.00013988,2]
[345396653,1734233450184,-654.387944,0.00013988,2]
[345396654,1734233450194,-654.387944,0.00013988,2]
[345396655,1734233450204,-654.387944,0.00013988,2]
[345396656,1734233450215,-654.387945,0.00013988,2]
[345396657,1734233450226,-500.0,0.00013988,2]
[345396658,1734233450236,-500.0,0.00013988,2]
[345396659,1734233450246,-500.0,0.00013988,2]
[345396660,1734233450255,-545.44851643,0.00013988,2]
[345396661,1734233450266,-500.0,0.00013988,2]
[345396662,1734233450277,-320.879224,0.00013988,2]
[345396663,1734233450287,-320.879224,0.00013988,2]
[345396664,1734233450297,-320.879224,0.00013988,2]
[345396665,1734233450306,-320.879223,0.00013988,2]
[345396666,1734233450316,-500.0,0.00013988,2]
[345396667,1734233450327,-500.0,0.00013988,2]
[345396668,1734233450336,-500.0,0.00013988,2]
[345396669,1734233450347,-500.0,0.00013988,2]
[345396670,1734233450358,-500.0,0.00013988,2]
[345396671,1734233450369,-500.0,0.00013988,2]
[345396672,1734233450379,-500.0,0.00013988,2]
[345396673,1734233450389,-500.0,0.00013988,2]
[345396674,1734233450399,-500.0,0.00013988,2]
[345396675,1734233450411,-500.0,0.00013988,2]
[345396676,1734233450421,-500.0,0.00013988,2]
[345396677,1734233450432,-500.0,0.00013988,2]
[345396678,1734233450442,-500.0,0.00013988,2]
[345396679,1734233450452,-500.0,0.00013988,2]
[345396680,1734233450465,-500.0,0.00013988,2]
[345396681,1734233450475,-415.44999202,0.00013988,2]
[345396682,1734233450485,-500.0,0.00013988,2]
[345396683,1734233450495,-500.0,0.00013988,2]
[345396684,1734233450505,-521.73672198,0.00013988,2]
[345396685,1734233450516,-151.0,0.00013988,2]
[345396686,1734233450527,-151.0,0.00013988,2]
[345396687,1734233450536,-3548.81,0.00013988,2]
[345396688,1734233450547,-500.0,0.00013988,2]
[345396689,1734233450556,-500.0,0.00013988,2]
[345396690,1734233450566,-515.76,0.00013988,2]
[345396691,1734233450577,-515.76,0.00013988,2]
[345396692,1734233450586,-515.76,0.00013988,2]
[345396693,1734233450596,-151.0,0.00013988,2]
[345396694,1734233450606,-500.0,0.00013988,2]
[345396695,1734233450617,-500.0,0.00013988,2]
[345396696,1734233450626,-2582.29,0.00013988,2]
[345396697,1734233450637,-500.0,0.00013988,2]
[345396698,1734233450652,-500.0,0.00013988,2]
[345396699,1734233450663,-500.0,0.00013988,2]
[345396700,1734233450674,-3250.31,0.00013988,2]
[345396701,1734233450686,-655.262782,0.00013988,2]
[345396702,1734233450696,-655.262782,0.00013988,2]
[345396703,1734233450706,-593.79663589,0.00013988,2]
[345396704,1734233450722,-3310.57457609,0.00013989,2]
[345396705,1734233450732,-593.79663589,0.00013989,2]
[345396706,1734233450742,-500.72943234,0.00013989,2]
[345396707,1734233450755,-502.41027516,0.00013989,2]
[345396708,1734233450766,-902.8,0.00013989,2]
[345396709,1734233450776,-500.0,0.00013989,2]
[345396710,1734233450787,-503.41301307,0.00013989,2]
[345396711,1734233450798,-525.08541673,0.00013989,2]
[345396712,1734233450809,-500.93594333,0.00013989,2]
[345396713,1734233450820,-432.51345036,0.00013989,2]
[345396714,1734233450830,-500.0,0.00013989,2]
[345396715,1734233450841,-500.0,0.00013989,2]
[345396716,1734233450850,-500.0,0.00013989,2]
[345396717,1734233450860,-476.69,0.00013989,2]
[345396718,1734233450871,-503.4035657,0.00013989,2]
[345396719,1734233450882,-500.0,0.00013989,2]
[345396720,1734233450893,-500.0,0.00013989,2]
[345396721,1734233450903,-500.0,0.00013989,2]
[345396722,1734233450913,-500.0,0.00013989,2]
[345396723,1734233450923,-500.0,0.00013989,2]
[345396724,1734233450933,-237.0879169,0.00013989,2]
[345396725,1734233450943,-500.0,0.00013989,2]
[345396726,1734233450952,-152.152533,0.00013989,2]
[345396727,1734233450962,-500.0,0.00013989,2]
[345396728,1734233450978,-500.0,0.00013989,2]
[345396729,1734233450987,-406.630126,0.00013989,2]
[345396730,1734233450998,-406.630126,0.00013989,2]
[345396731,1734233451008,-500.0,0.00013989,2]
[345396732,1734233451018,-534.97830682,0.00013989,2]
[345396733,1734233451028,-500.0,0.00013989,2]
[345396734,1734233451038,-310.632852,0.00013989,2]
[345396735,1734233451048,-151.0,0.00013989,2]
[345396736,1734233451058,-310.632852,0.00013989,2]
[345396737,1734233451068,-151.0,0.00013989,2]
[345396738,1734233451082,-500.0,0.00013989,2]
[345396739,1734233451092,-500.0,0.00013989,2]
[345396740,1734233451102,-151.0,0.00013989,2]
[345396741,1734233451113,-500.0,0.00013989,2]
[345396742,1734233451125,-500.0,0.00013989,2]
[345396743,1734233451135,-500.0,0.00013989,2]
[345396744,1734233451145,-500.0,0.00013989,2]
[345396745,1734233451157,-500.0,0.00013989,2]
[345396746,1734233451167,-500.0,0.00013989,2]
[345396747,1734233451177,-500.0,0.00013989,2]
[345396748,1734233451187,-500.0,0.00013989,2]
[345396749,1734233451203,-331.42601915,0.00013989,2]
[345396750,1734233451213,-924.79,0.00013989,2]
[345396751,1734233451227,-1000.0,0.00013989,2]
[345396752,1734233451237,-500.0,0.00013989,2]
[345396753,1734233451248,-550.653301,0.00013989,2]
[345396754,1734233451259,-500.0,0.00013989,2]
[345396755,1734233451269,-550.653301,0.00013989,2]
[345396756,1734233451400,-500.0,0.00013989,2]
[345396757,1734233451425,-500.0,0.00013989,2]
[345396758,1734233451435,-3339.33,0.00013989,2]
[345396759,1734233451445,-500.0,0.00013989,2]
[345396760,1734233451456,-500.0,0.00013989,2]
[345396761,1734233451469,-500.0,0.00013989,2]
[345396762,1734233451479,-151.0,0.00013989,2]
[345396763,1734233451489,-151.0,0.00013989,2]
[345396764,1734233451499,-500.0,0.00013989,2]
[345396765,1734233451509,-1360.889855,0.00013989,2]
[345396766,1734233451520,-1360.889855,0.00013989,2]
[345396767,1734233451530,-519.07556616,0.00013989,2]
[345396768,1734233451540,-151.0,0.00013989,2]
[345396769,1734233451550,-151.0,0.00013989,2]
[345396770,1734233451560,-1360.889855,0.00013989,2]
[345396771,1734233451570,-1360.889855,0.00013989,2]
[345396772,1734233451579,-218.84219093,0.00013989,2]
[345396773,1734233451589,-188.069419,0.00013989,2]
[345396774,1734233451598,-188.069419,0.00013989,2]
[345396775,1734233451609,-188.069419,0.00013989,2]
[345396776,1734233451619,-188.069419,0.00013989,2]
[345396777,1734233451628,-500.0,0.00013989,2]
[345396778,1734233451638,-500.0,0.00013989,2]
[345396779,1734233451648,-151.0,0.00013989,2]
[345396780,1734233451658,-151.0,0.00013989,2]
[345396781,1734233451668,-500.0,0.00013989,2]
[345396782,1734233451678,-500.0,0.00013989,2]
[345396783,1734233451687,-531.27224474,0.00013989,2]
[345396784,1734233451697,-500.0,0.00013989,2]
[345396785,1734233451706,-500.0,0.00013989,2]
[345396786,1734233451717,-503.54609498,0.00013989,2]
[345396787,1734233451727,-151.0,0.00013989,2]
[345396788,1734233451736,-153.66479182,0.00013989,2]
[345396789,1734233451746,-518.32888783,0.00013989,2]
[345396790,1734233451756,-393.11089938,0.00013989,2]
[345396791,1734233451766,-151.0,0.00013989,2]
[345396792,1734233451776,-151.0,0.00013989,2]
[345396793,1734233451786,-500.0,0.00013989,2]
[345396794,1734233451796,-151.0,0.00013989,2]
[345396795,1734233451806,-507.5760765,0.00013989,2]
[345396796,1734233451816,-500.0,0.00013989,2]
[345396797,1734233451826,-500.0,0.00013989,2]
[345396798,1734233451836,-151.0,0.00013989,2]
[345396799,1734233451846,-151.0,0.00013989,2]
[345396800,1734233451855,-306.261387,0.00013989,2]
[345396801,1734233451865,-306.261387,0.00013989,2]
[345396802,1734233451875,-151.0,0.00013989,2]
[345396803,1734233451885,-306.261387,0.00013989,2]
[345396804,1734233451894,-151.0,0.00013989,2]
[345396805,1734233451904,-306.261387,0.00013989,2]
[345396806,1734233451914,-151.0,0.00013989,2]
[345396807,1734233451924,-151.0,0.00013989,2]
[345396808,1734233451934,-165.076312,0.00013989,2]
[345396809,1734233451944,-857.965,0.00013989,2]
[345396810,1734233451954,-857.965,0.00013989,2]
[345396811,1734233451964,-165.076312,0.00013989,2]
[345396812,1734233451974,-182.095184,0.00013989,2]
[345396813,1734233451984,-182.095184,0.00013989,2]
[345396814,1734233452006,-857.965,0.00013989,2]
[345396815,1734233452017,-857.965,0.00013989,2]
[345396816,1734233452028,-182.095184,0.00013989,2]
[345396817,1734233452040,-182.095184,0.00013989,2]
[345396818,1734233452051,-578.94,0.00013989,2]
[345396819,1734233452062,-500.0,0.00013989,2]
[345396820,1734233452076,-500.0,0.00013989,2]
[345396821,1734233452088,-502.94687176,0.00013989,2]
[345396822,1734233452099,-6755.58,0.00013989,2]
[345396823,1734233452110,-525.02,0.00013989,2]
[345396824,1734233452122,-1000.0,0.00013989,2]
[345396825,1734233452132,-522.55564475,0.00013989,2]
[345396826,1734233452143,-2563.75,0.00013989,2]
[345396827,1734233452156,-500.0,0.00013989,2]
[345396828,1734233452166,-500.0,0.00013989,2]
[345396829,1734233452177,-500.0,0.00013989,2]
[345396830,1734233452189,-500.0,0.00013989,2]
[345396831,1734233452199,-500.0,0.00013989,2]
[345396832,1734233452209,-1394.99,0.00013989,2]
[345396833,1734233452225,-10011.11,0.00013989,2]
[345396834,1734233452236,-6841.52,0.00013989,2]
[345396835,1734233452254,-1283.95,0.00013989,2]
[345396836,1734233452265,-10544.58,0.00013989,2]
[345396837,1734233452276,-590.09,0.00013989,2]
[345396838,1734233452287,-513.8058687,0.00013989,2]
[345396839,1734233452298,-18549.34,0.00013989,2]
[345396840,1734233452309,-500.0,0.00013989,2]
[345396841,1734233452319,-500.0,0.00013989,2]
[345396842,1734233452330,-662.78,0.00013989,2]
[345396843,1734233452341,-366.45,0.00013989,2]
[345396844,1734233452351,-2543.79,0.00013989,2]
[345396845,1734233452362,-497.8266549,0.00013989,2]
[345396846,1734233452372,-500.0,0.00013989,2]
[345396847,1734233452383,-500.0,0.00013989,2]
[345396848,1734233452393,-249.45584091,0.00013989,2]
[345396849,1734233452402,-515.17851884,0.00013989,2]
[345396850,1734233452414,-580.94,0.00013989,2]
[345396851,1734233452425,-8942.94,0.00013989,2]
[345396852,1734233452436,-655.262782,0.00013989,2]
[345396853,1734233452445,-655.262783,0.00013989,2]
[345396854,1734233452455,-151.0,0.0001399,2]
[345396855,1734233452466,-406.630126,0.0001399,2]
[345396856,1734233452476,-406.630126,0.0001399,2]
[345396857,1734233452486,-310.632852,0.0001399,2]
[345396858,1734233452497,-151.0,0.0001399,2]
[345396859,1734233452507,-310.632852,0.0001399,2]
[345396860,1734233452517,-151.0,0.0001399,2]
[345396861,1734233452527,-151.0,0.0001399,2]
[345396862,1734233452543,-550.653301,0.0001399,2]
[345396863,1734233452552,-550.653301,0.0001399,2]
[345396864,1734233452563,-151.0,0.0001399,2]
[345396865,1734233452575,-1360.889855,0.0001399,2]
[345396866,1734233452585,-154.948057,0.0001399,2]
[345396867,1734233452596,-1360.889855,0.0001399,2]
[345396868,1734233452606,-188.069419,0.0001399,2]
[345396869,1734233452616,-188.069419,0.0001399,2]
[345396870,1734233452627,-151.0,0.0001399,2]
[345396871,1734233452637,-151.0,0.0001399,2]
[345396872,1734233452648,-151.0,0.0001399,2]
[345396873,1734233452658,-151.0,0.0001399,2]
[345396874,1734233452668,-859.8189198,0.0001399,2]
[345396875,1734233452679,-802.9396398,0.0001399,2]
[345396876,1734233452689,-746.0603598,0.0001399,2]
[345396877,1734233452699,-151.0,0.0001399,2]
[345396878,1734233452710,-5260.638499,0.0001399,2]
[345396879,1734233452721,-4922.2237347,0.0001399,2]
[345396880,1734233452731,-4583.8089704,0.0001399,2]
[345396881,1734233452740,-165.076312,0.0001399,2]
[345396882,1734233452750,-165.076312,0.0001399,2]
[345396883,1734233452760,-2639.6114193,0.0001399,2]
[345396884,1734233452770,-2469.8062756,0.0001399,2]
[345396885,1734233452781,-1865.6210776,0.0001399,2]
[345396886,1734233452792,-1737.2621714,0.0001399,2]
[345396887,1734233452802,-1608.9032653,0.0001399,2]
[345396888,1734233452812,-12604.4624024,0.0001399,2]
[345396889,1734233452823,-11737.2471753,0.0001399,2]
[345396890,1734233452833,-10870.0319481,0.0001399,2]
[345396891,1734233452843,-593.79663589,0.00013991,2]
[345396892,1734233452853,-4806.53227466,0.00013992,2]
[345396893,1734233452863,-4806.53227466,0.00013992,2]
[345396894,1734233452873,-201.18721383,0.00013993,2]
[345396895,1734233452883,-5470.93801568,0.00013993,2]
[345396896,1734233452893,-3310.57457609,0.00013994,2]
[345396897,1734233452904,-3310.57457609,0.00013994,2]
[345396898,1734233452915,-7773.9394296,0.00013994,2]
[345396899,1734233452925,-919.30818055,0.00013994,2]
[345396900,1734233452935,-1000.0,0.00013995,2]
[345396901,1734233452946,-151.0,0.00013995,2]
[345396902,1734233452956,-306.261387,0.00013995,2]
[345396903,1734233452966,-151.0,0.00013995,2]
[345396904,1734233452976,-306.261387,0.00013995,2]
[345396905,1734233452987,-151.0,0.00013995,2]
[345396906,1734233452998,-857.965,0.00013995,2]
[345396907,1734233453008,-182.095184,0.00013995,2]
[345396908,1734233453019,-857.965,0.00013995,2]
[345396909,1734233453030,-182.095184,0.00013995,2]
[345396910,1734233453044,-5470.93801568,0.00013995,2]
[345396911,1734233453055,-551.76242935,0.00013996,2]
[345396912,1734233453065,-671.2439,0.00013996,2]
[345396913,1734233453079,-500.0,0.00013996,2]
[345396914,1734233453090,-911.18,0.00013996,2]
[345396915,1734233453100,-630.38290793,0.00013996,2]
[345396916,1734233453110,-3656.05,0.00013996,2]
[345396917,1734233453121,-500.0,0.00013996,2]
[345396918,1734233453131,-1394.99,0.00013996,2]
[345396919,1734233453142,-10011.11,0.00013996,2]
[345396920,1734233453158,-6841.52,0.00013996,2]
[345396921,1734233453170,-500.0,0.00013996,2]
[345396922,1734233453180,-1283.95,0.00013996,2]
[345396923,1734233453191,-10544.58,0.00013996,2]